[Event "*** Titled Tuesday Blitz"]
[Site "Chess.com"]
[Date "2021.03.09"]
[Round "2"]
[White "GMKrikor"]
[Black "arminmusovic"]
[Result "1-0"]
[WhiteElo "2734"]
[BlackElo "2505"]
[TimeControl "180+1"]
[EndTime "10:19:02 PST"]
[Termination "GMKrikor won by resignation"]

1. Nf3 {[%clk 0:03:00]} 1... a6 {[%clk 0:02:59.2]} 2. e4 {[%clk 0:02:58.4]} 2...
e6 {[%clk 0:02:59.2]} 3. d4 {[%clk 0:02:58.2]} 3... d5 {[%clk 0:02:59.4]} 4.
Nbd2 {[%clk 0:02:52]} 4... c5 {[%clk 0:02:58.7]} 5. exd5 {[%clk 0:02:38.9]} 5...
exd5 {[%clk 0:02:58.1]} 6. Be2 {[%clk 0:02:19.7]} 6... Nf6 {[%clk 0:02:55.1]} 7.
O-O {[%clk 0:02:18.5]} 7... Nc6 {[%clk 0:02:55.6]} 8. Re1 {[%clk 0:02:15.2]}
8... cxd4 {[%clk 0:02:52.1]} 9. Bxa6+ {[%clk 0:01:46.3]} 9... Be7 {[%clk
0:02:51.7]} 10. Bb5 {[%clk 0:01:46.5]} 10... O-O {[%clk 0:02:51.8]} 11. Nb3
{[%clk 0:01:46.5]} 11... h6 {[%clk 0:02:49.2]} 12. Nbxd4 {[%clk 0:01:44.1]}
12... Bd7 {[%clk 0:02:43.1]} 13. c3 {[%clk 0:01:36.6]} 13... Bd6 {[%clk
0:02:42.1]} 14. Bd3 {[%clk 0:01:23.3]} 14... Qb6 {[%clk 0:02:40.3]} 15. Nb3
{[%clk 0:01:16.8]} 15... Rfe8 {[%clk 0:02:37]} 16. Be3 {[%clk 0:01:16.4]} 16...
Qc7 {[%clk 0:02:33.8]} 17. h3 {[%clk 0:01:13.5]} 17... Ne4 {[%clk 0:02:24.4]}
18. Nbd4 {[%clk 0:01:10.4]} 18... Qb8 {[%clk 0:02:07.9]} 19. Bf1 {[%clk
0:01:01.7]} 19... Ne7 {[%clk 0:02:03.3]} 20. Qc2 {[%clk 0:00:54.4]} 20... Ng6
{[%clk 0:01:54.6]} 21. Bb5 {[%clk 0:00:51.5]} 21... Qd8 {[%clk 0:01:45.4]} 22.
Bxd7 {[%clk 0:00:49.8]} 22... Qxd7 {[%clk 0:01:46.3]} 23. a3 {[%clk 0:00:50.1]}
23... Rac8 {[%clk 0:01:44.3]} 24. Rad1 {[%clk 0:00:49.6]} 24... Bb8 {[%clk
0:01:38.8]} 25. Qb3 {[%clk 0:00:42.8]} 25... Nf6 {[%clk 0:01:29.2]} 26. Qb5
{[%clk 0:00:41.5]} 26... Qc7 {[%clk 0:01:27.4]} 27. Qd3 {[%clk 0:00:32.3]} 27...
Re4 {[%clk 0:01:27.1]} 28. Ne2 {[%clk 0:00:29.7]} 28... Rce8 {[%clk 0:01:23.8]}
29. Ng3 {[%clk 0:00:28.8]} 29... R4e7 {[%clk 0:01:19.1]} 30. Bd4 {[%clk
0:00:28.2]} 30... Ne4 {[%clk 0:01:18.5]} 31. Nf5 {[%clk 0:00:18.7]} 31... Re6
{[%clk 0:01:14.3]} 32. Nxg7 {[%clk 0:00:17.8]} 32... Ng5 {[%clk 0:01:07]} 33.
Nxe6 {[%clk 0:00:10.9]} 33... Nxf3+ {[%clk 0:01:05.4]} 34. Qxf3 {[%clk
0:00:11.8]} 34... Qh2+ {[%clk 0:01:05.6]} 35. Kf1 {[%clk 0:00:12.4]} 35... Qh1+
{[%clk 0:01:06.1]} 36. Ke2 {[%clk 0:00:12.6]} 36... Rxe6+ {[%clk 0:01:02.3]} 37.
Kd2 {[%clk 0:00:11.5]} 37... Qh2 {[%clk 0:01:02.1]} 38. Rxe6 {[%clk 0:00:10.7]}
38... fxe6 {[%clk 0:01:02]} 39. Qf6 {[%clk 0:00:06.8]} 39... Qf4+ {[%clk
0:00:45.2]} 40. Qxf4 {[%clk 0:00:05.9]} 40... Bxf4+ {[%clk 0:00:46.1]} 41. Be3
{[%clk 0:00:05.9]} 41... Bc7 {[%clk 0:00:46.4]} 42. Bxh6 {[%clk 0:00:06]} 42...
Kf7 {[%clk 0:00:46.5]} 43. Ke2 {[%clk 0:00:06.2]} 43... Kf6 {[%clk 0:00:45.9]}
44. Be3 {[%clk 0:00:06.1]} 44... e5 {[%clk 0:00:45.8]} 45. Rxd5 {[%clk
0:00:05.4]} 45... Ke6 {[%clk 0:00:46.3]} 46. Rb5 {[%clk 0:00:05.5]} 1-0

[Event "*** Titled Tuesday Blitz"]
[Site "Chess.com"]
[Date "2021.03.09"]
[Round "2"]
[White "LEGENYA1998"]
[Black "Bastiandash"]
[Result "0-1"]
[WhiteElo "2259"]
[BlackElo "2473"]
[TimeControl "180+1"]
[EndTime "10:19:02 PST"]
[Termination "Bastiandash won by resignation"]

1. e4 {[%clk 0:03:00.9]} 1... c5 {[%clk 0:02:59.5]} 2. Nf3 {[%clk 0:03:01.1]}
2... e6 {[%clk 0:03:00.1]} 3. Bc4 {[%clk 0:03:01]} 3... a6 {[%clk 0:03:00]} 4.
d3 {[%clk 0:03:00.2]} 4... d5 {[%clk 0:02:58.9]} 5. exd5 {[%clk 0:03:00.3]} 5...
exd5 {[%clk 0:02:59.8]} 6. Bb3 {[%clk 0:03:00.1]} 6... Nf6 {[%clk 0:03:00.5]} 7.
O-O {[%clk 0:03:00.1]} 7... Be7 {[%clk 0:03:00.3]} 8. h3 {[%clk 0:03:00.1]} 8...
O-O {[%clk 0:03:00.4]} 9. Nc3 {[%clk 0:03:00.4]} 9... b5 {[%clk 0:03:01]} 10. a4
{[%clk 0:02:53.9]} 10... b4 {[%clk 0:02:54.3]} 11. Ne2 {[%clk 0:02:53.2]} 11...
Qc7 {[%clk 0:02:47.5]} 12. c3 {[%clk 0:02:52.3]} 12... a5 {[%clk 0:02:42.2]} 13.
d4 {[%clk 0:02:47.1]} 13... bxc3 {[%clk 0:02:28]} 14. Nxc3 {[%clk 0:02:43]}
14... Be6 {[%clk 0:02:17.3]} 15. Bg5 {[%clk 0:02:36.8]} 15... Rd8 {[%clk
0:02:14.4]} 16. dxc5 {[%clk 0:02:31.4]} 16... Qxc5 {[%clk 0:02:14.1]} 17. Nd4
{[%clk 0:02:29.5]} 17... Nc6 {[%clk 0:02:06.9]} 18. Be3 {[%clk 0:02:26.9]} 18...
Qd6 {[%clk 0:01:57.4]} 19. Rc1 {[%clk 0:02:23.8]} 19... Nxd4 {[%clk 0:01:46.5]}
20. Bxd4 {[%clk 0:02:23.5]} 20... Rab8 {[%clk 0:01:41]} 21. Nb5 {[%clk
0:02:19.9]} 21... Qb4 {[%clk 0:01:36.5]} 22. Bc2 {[%clk 0:02:10.1]} 22... Ne4
{[%clk 0:01:21.9]} 23. Re1 {[%clk 0:02:01.6]} 23... Bf5 {[%clk 0:01:16.2]} 24.
f3 {[%clk 0:01:32.3]} 24... Ng3 {[%clk 0:01:09.8]} 25. Be5 {[%clk 0:01:01]}
25... Bxc2 {[%clk 0:00:55.4]} 26. Qxc2 {[%clk 0:00:59.4]} 26... Rxb5 {[%clk
0:00:24.6]} 27. axb5 {[%clk 0:00:53.6]} 27... Nh5 {[%clk 0:00:24.5]} 28. Qc7
{[%clk 0:00:41]} 28... Re8 {[%clk 0:00:24.4]} 29. Bc3 {[%clk 0:00:34.9]} 29...
Qh4 {[%clk 0:00:15.9]} 30. Red1 {[%clk 0:00:17]} 30... Nf4 {[%clk 0:00:12.4]}
31. Qe5 {[%clk 0:00:10.6]} 31... Qg3 {[%clk 0:00:10.8]} 32. Qxg7+ {[%clk
0:00:09.9]} 32... Qxg7 {[%clk 0:00:10.3]} 33. Bxg7 {[%clk 0:00:10.1]} 33... Kxg7
{[%clk 0:00:11.2]} 34. b6 {[%clk 0:00:10.5]} 34... Ne2+ {[%clk 0:00:10.8]} 35.
Kf2 {[%clk 0:00:10.4]} 35... Nxc1 {[%clk 0:00:11.7]} 36. Rxc1 {[%clk 0:00:10.9]}
36... Rb8 {[%clk 0:00:12.3]} 37. Rc6 {[%clk 0:00:11.1]} 37... Rxb6 {[%clk
0:00:12.2]} 0-1

[Event "*** Titled Tuesday Blitz"]
[Site "Chess.com"]
[Date "2021.03.09"]
[Round "2"]
[White "volunteers1998"]
[Black "Arvids_Andrejevs"]
[Result "1-0"]
[WhiteElo "2192"]
[BlackElo "2403"]
[TimeControl "180+1"]
[EndTime "10:19:05 PST"]
[Termination "volunteers1998 won by resignation"]

1. e4 {[%clk 0:03:00.9]} 1... e5 {[%clk 0:03:00.1]} 2. Nc3 {[%clk 0:02:59.8]}
2... Nf6 {[%clk 0:02:57.1]} 3. Bc4 {[%clk 0:03:00.2]} 3... Nxe4 {[%clk 0:02:43]}
4. Qh5 {[%clk 0:02:58.6]} 4... d5 {[%clk 0:02:35.3]} 5. Bxd5 {[%clk 0:02:54.5]}
5... Nd6 {[%clk 0:02:35.3]} 6. Qxe5+ {[%clk 0:02:51]} 6... Qe7 {[%clk
0:02:34.6]} 7. Qxe7+ {[%clk 0:02:47.9]} 7... Bxe7 {[%clk 0:02:35.5]} 8. d3
{[%clk 0:02:43.8]} 8... O-O {[%clk 0:02:34.9]} 9. Nf3 {[%clk 0:02:43.2]} 9... c6
{[%clk 0:02:31.7]} 10. Bb3 {[%clk 0:02:39.9]} 10... Bf6 {[%clk 0:02:25.5]} 11.
O-O {[%clk 0:02:36.9]} 11... a5 {[%clk 0:02:24.6]} 12. a4 {[%clk 0:02:32.9]}
12... Bg4 {[%clk 0:02:24.3]} 13. Bg5 {[%clk 0:02:23.3]} 13... Bxc3 {[%clk
0:02:21]} 14. bxc3 {[%clk 0:02:18.2]} 14... Bxf3 {[%clk 0:02:07.6]} 15. gxf3
{[%clk 0:02:18.5]} 15... Re8 {[%clk 0:02:04.4]} 16. Rfe1 {[%clk 0:02:12.7]}
16... Nd7 {[%clk 0:02:04]} 17. d4 {[%clk 0:02:08.7]} 17... Nb6 {[%clk
0:02:00.2]} 18. Kf1 {[%clk 0:02:04.1]} 18... Nbc4 {[%clk 0:01:56.7]} 19. Rxe8+
{[%clk 0:01:53.9]} 19... Rxe8 {[%clk 0:01:53.5]} 20. Re1 {[%clk 0:01:51.2]}
20... Rxe1+ {[%clk 0:01:50.3]} 21. Kxe1 {[%clk 0:01:50.1]} 21... b5 {[%clk
0:01:50.2]} 22. Be7 {[%clk 0:01:44.3]} 22... bxa4 {[%clk 0:01:09.1]} 23. Bxa4
{[%clk 0:01:41.2]} 23... Nb5 {[%clk 0:01:07.3]} 24. Bd8 {[%clk 0:01:30.4]} 24...
Nxc3 {[%clk 0:01:01.1]} 25. Bb3 {[%clk 0:01:26.6]} 25... Nd6 {[%clk 0:00:44.1]}
26. Bxa5 {[%clk 0:01:23.8]} 26... Ncb5 {[%clk 0:00:44.7]} 27. c3 {[%clk
0:01:12.2]} 27... g5 {[%clk 0:00:44.9]} 28. Kd2 {[%clk 0:01:06.8]} 28... Kg7
{[%clk 0:00:43]} 29. Kd3 {[%clk 0:01:04.3]} 29... Nf5 {[%clk 0:00:42.1]} 30. Bb6
{[%clk 0:00:54.5]} 30... Nh4 {[%clk 0:00:41]} 31. c4 {[%clk 0:00:51.9]} 31...
Nd6 {[%clk 0:00:38.5]} 32. Ba4 {[%clk 0:00:48.6]} 32... Nxf3 {[%clk 0:00:34.4]}
33. Bxc6 {[%clk 0:00:46]} 33... Nxh2 {[%clk 0:00:35]} 34. Bc7 {[%clk 0:00:42.9]}
34... Nxc4 {[%clk 0:00:30.4]} 35. Kxc4 {[%clk 0:00:38.8]} 35... Ng4 {[%clk
0:00:30.9]} 36. d5 {[%clk 0:00:38.4]} 36... h5 {[%clk 0:00:24.3]} 37. d6 {[%clk
0:00:37.5]} 37... Nf6 {[%clk 0:00:23.7]} 38. d7 {[%clk 0:00:36.3]} 38... Nxd7
{[%clk 0:00:23.6]} 39. Bxd7 {[%clk 0:00:36.5]} 39... Kg6 {[%clk 0:00:22.4]} 40.
Kd4 {[%clk 0:00:36.1]} 40... f5 {[%clk 0:00:22.6]} 41. Be8+ {[%clk 0:00:33.5]}
41... Kh6 {[%clk 0:00:22.3]} 42. Ke5 {[%clk 0:00:33]} 42... f4 {[%clk
0:00:19.3]} 43. Kf5 {[%clk 0:00:32.1]} 43... f3 {[%clk 0:00:18.5]} 44. Bd8
{[%clk 0:00:31]} 44... g4 {[%clk 0:00:18.7]} 45. Bg5+ {[%clk 0:00:30.4]} 45...
Kg7 {[%clk 0:00:19]} 46. Bxh5 {[%clk 0:00:30.2]} 46... g3 {[%clk 0:00:10.9]} 47.
fxg3 {[%clk 0:00:28.2]} 47... f2 {[%clk 0:00:11.4]} 48. Be2 {[%clk 0:00:28.2]}
1-0

[Event "*** Titled Tuesday Blitz"]
[Site "Chess.com"]
[Date "2021.03.09"]
[Round "2"]
[White "A-S-00"]
[Black "Trovita84"]
[Result "1-0"]
[WhiteElo "2393"]
[BlackElo "2066"]
[TimeControl "180+1"]
[EndTime "10:19:06 PST"]
[Termination "A-S-00 won by resignation"]

1. d4 {[%clk 0:03:00.4]} 1... Nf6 {[%clk 0:02:58.5]} 2. Nf3 {[%clk 0:03:00.2]}
2... g6 {[%clk 0:02:56.8]} 3. c4 {[%clk 0:03:00.4]} 3... Bg7 {[%clk 0:02:52.9]}
4. Nc3 {[%clk 0:03:00.6]} 4... d6 {[%clk 0:02:41.2]} 5. e4 {[%clk 0:03:00.1]}
5... O-O {[%clk 0:02:36]} 6. Be2 {[%clk 0:03:00.2]} 6... c5 {[%clk 0:02:32.5]}
7. O-O {[%clk 0:02:58.7]} 7... cxd4 {[%clk 0:02:20.1]} 8. Nxd4 {[%clk
0:02:57.5]} 8... Nc6 {[%clk 0:02:17.8]} 9. Nc2 {[%clk 0:02:48.2]} 9... Nd7
{[%clk 0:02:05.1]} 10. Be3 {[%clk 0:02:39.9]} 10... a6 {[%clk 0:01:56.6]} 11.
Rb1 {[%clk 0:02:23.4]} 11... Rb8 {[%clk 0:01:52.3]} 12. Nd4 {[%clk 0:02:06.5]}
12... Nde5 {[%clk 0:01:46.8]} 13. f3 {[%clk 0:01:54.5]} 13... Nxd4 {[%clk
0:01:37.2]} 14. Bxd4 {[%clk 0:01:53.5]} 14... Nc6 {[%clk 0:01:33]} 15. Bxg7
{[%clk 0:01:52.3]} 15... Kxg7 {[%clk 0:01:33.9]} 16. Qd2 {[%clk 0:01:43.2]}
16... e5 {[%clk 0:01:32.8]} 17. Rfd1 {[%clk 0:01:24.7]} 17... Nd4 {[%clk
0:01:22]} 18. Bf1 {[%clk 0:01:23.3]} 18... Be6 {[%clk 0:01:17.4]} 19. Ne2 {[%clk
0:01:11.8]} 19... Nxe2+ {[%clk 0:01:13.2]} 20. Bxe2 {[%clk 0:01:09.7]} 20...
Qb6+ {[%clk 0:01:06.4]} 21. Kh1 {[%clk 0:01:08.9]} 21... Rfd8 {[%clk 0:01:04.3]}
22. b3 {[%clk 0:01:00.8]} 22... Qf2 {[%clk 0:00:56.5]} 23. Rf1 {[%clk
0:00:49.6]} 23... Qb6 {[%clk 0:00:56.3]} 24. Rbd1 {[%clk 0:00:47.7]} 24... Qc5
{[%clk 0:00:49.1]} 25. f4 {[%clk 0:00:34]} 25... f5 {[%clk 0:00:42.5]} 26. Bd3
{[%clk 0:00:24.4]} 26... Rf8 {[%clk 0:00:38.9]} 27. Qc3 {[%clk 0:00:22.5]} 27...
fxe4 {[%clk 0:00:32.3]} 28. Bxe4 {[%clk 0:00:21.8]} 28... b5 {[%clk 0:00:26.3]}
29. fxe5 {[%clk 0:00:18.5]} 29... dxe5 {[%clk 0:00:25.7]} 30. Rfe1 {[%clk
0:00:16.4]} 30... bxc4 {[%clk 0:00:24.8]} 31. bxc4 {[%clk 0:00:14.8]} 31... Rb4
{[%clk 0:00:15.6]} 32. Bd3 {[%clk 0:00:13.2]} 32... Bxc4 {[%clk 0:00:10.7]} 33.
Rxe5 {[%clk 0:00:11.4]} 33... Qc7 {[%clk 0:00:03.8]} 34. Re7+ {[%clk 0:00:09.7]}
1-0

[Event "*** Titled Tuesday Blitz"]
[Site "Chess.com"]
[Date "2021.03.09"]
[Round "2"]
[White "Natalya_Buksa"]
[Black "K_A_S_T_O_R"]
[Result "0-1"]
[WhiteElo "2521"]
[BlackElo "2792"]
[TimeControl "180+1"]
[EndTime "10:19:08 PST"]
[Termination "K_A_S_T_O_R won on time"]

1. e4 {[%clk 0:03:00.9]} 1... c5 {[%clk 0:02:58.6]} 2. c3 {[%clk 0:03:00.9]}
2... Nf6 {[%clk 0:02:57.8]} 3. e5 {[%clk 0:03:01.2]} 3... Nd5 {[%clk 0:02:58.4]}
4. Bc4 {[%clk 0:03:01.9]} 4... Nb6 {[%clk 0:02:55.6]} 5. Bb3 {[%clk 0:03:02.2]}
5... d5 {[%clk 0:02:52.2]} 6. exd6 {[%clk 0:03:01.5]} 6... Qxd6 {[%clk
0:02:51.8]} 7. Na3 {[%clk 0:03:02.1]} 7... a6 {[%clk 0:02:47.5]} 8. Ne2 {[%clk
0:02:50]} 8... Nc6 {[%clk 0:02:46.3]} 9. d4 {[%clk 0:02:50]} 9... cxd4 {[%clk
0:02:44.4]} 10. O-O {[%clk 0:02:42.6]} 10... d3 {[%clk 0:02:19.8]} 11. Nf4
{[%clk 0:02:42]} 11... e5 {[%clk 0:02:18.9]} 12. Nxd3 {[%clk 0:02:39.2]} 12...
Bf5 {[%clk 0:02:19.3]} 13. Nb4 {[%clk 0:01:12.9]} 13... Qxd1 {[%clk 0:02:06.6]}
14. Rxd1 {[%clk 0:01:10.3]} 14... Nxb4 {[%clk 0:01:36.6]} 15. cxb4 {[%clk
0:01:11.2]} 15... Bxb4 {[%clk 0:01:34]} 16. Be3 {[%clk 0:01:11.4]} 16... Nd7
{[%clk 0:01:32.5]} 17. Nc4 {[%clk 0:01:04.1]} 17... b5 {[%clk 0:01:03]} 18. Nd6+
{[%clk 0:00:52]} 18... Bxd6 {[%clk 0:01:02.9]} 19. Rxd6 {[%clk 0:00:52.9]} 19...
Ke7 {[%clk 0:01:03.4]} 20. Rd2 {[%clk 0:00:31.5]} 20... Rhc8 {[%clk 0:01:01.2]}
21. f3 {[%clk 0:00:28.1]} 21... h6 {[%clk 0:00:59.6]} 22. a4 {[%clk 0:00:25.2]}
22... Be6 {[%clk 0:00:57.1]} 23. Bc2 {[%clk 0:00:20.5]} 23... b4 {[%clk
0:00:49.2]} 24. Be4 {[%clk 0:00:20.2]} 24... Rab8 {[%clk 0:00:46.4]} 25. g4
{[%clk 0:00:19.9]} 25... Nc5 {[%clk 0:00:44.1]} 26. Bc2 {[%clk 0:00:17]} 26...
a5 {[%clk 0:00:42.7]} 27. Kf2 {[%clk 0:00:16.4]} 27... Rb7 {[%clk 0:00:41.5]}
28. Bd1 {[%clk 0:00:16.5]} 28... Rbc7 {[%clk 0:00:40.7]} 29. h4 {[%clk 0:00:09]}
29... f6 {[%clk 0:00:40.7]} 30. h5 {[%clk 0:00:08.3]} 30... Rc6 {[%clk
0:00:36.4]} 31. Kg3 {[%clk 0:00:04.6]} 31... Rd6 {[%clk 0:00:34.7]} 32. Rxd6
{[%clk 0:00:02.6]} 32... Kxd6 {[%clk 0:00:35.6]} 33. Be2 {[%clk 0:00:03.3]}
33... Bd5 {[%clk 0:00:28]} 34. Rd1 {[%clk 0:00:03.5]} 34... Ke6 {[%clk 0:00:28]}
35. Bb5 {[%clk 0:00:03.1]} 35... Bb3 {[%clk 0:00:16.4]} 36. Rc1 {[%clk
0:00:03.3]} 36... Kd6 {[%clk 0:00:16.8]} 37. Re1 {[%clk 0:00:01.6]} 37... Nxa4
{[%clk 0:00:14.6]} 0-1

[Event "*** Titled Tuesday Blitz"]
[Site "Chess.com"]
[Date "2021.03.09"]
[Round "2"]
[White "mbojan"]
[Black "Kaslask"]
[Result "1-0"]
[WhiteElo "2626"]
[BlackElo "2333"]
[TimeControl "180+1"]
[EndTime "10:19:08 PST"]
[Termination "mbojan won on time"]

1. g3 {[%clk 0:03:00.9]} 1... g6 {[%clk 0:02:58.8]} 2. Bg2 {[%clk 0:02:58]} 2...
Bg7 {[%clk 0:02:58.8]} 3. Nf3 {[%clk 0:02:58.6]} 3... c5 {[%clk 0:02:58.3]} 4.
O-O {[%clk 0:02:58.6]} 4... Nc6 {[%clk 0:02:58.1]} 5. c3 {[%clk 0:02:57.3]} 5...
e6 {[%clk 0:02:57.1]} 6. d4 {[%clk 0:02:56.1]} 6... cxd4 {[%clk 0:02:56.5]} 7.
cxd4 {[%clk 0:02:47.9]} 7... Nge7 {[%clk 0:02:54.7]} 8. Nc3 {[%clk 0:02:44.9]}
8... d5 {[%clk 0:02:54.4]} 9. Bf4 {[%clk 0:02:44.6]} 9... a6 {[%clk 0:02:45.5]}
10. Rc1 {[%clk 0:02:38.4]} 10... h6 {[%clk 0:02:44.2]} 11. Qd2 {[%clk
0:02:35.6]} 11... g5 {[%clk 0:02:42.8]} 12. Be3 {[%clk 0:02:33.5]} 12... Nf5
{[%clk 0:02:42.3]} 13. Rfd1 {[%clk 0:02:28.5]} 13... O-O {[%clk 0:02:30.9]} 14.
Bh3 {[%clk 0:02:23.6]} 14... Nxe3 {[%clk 0:02:28.1]} 15. Qxe3 {[%clk 0:02:24.5]}
15... Qd6 {[%clk 0:01:58.8]} 16. Bg2 {[%clk 0:02:22.2]} 16... b5 {[%clk
0:01:57.8]} 17. h4 {[%clk 0:02:18.8]} 17... f6 {[%clk 0:01:57]} 18. Qd2 {[%clk
0:02:09.9]} 18... Bb7 {[%clk 0:01:55.4]} 19. e4 {[%clk 0:02:08.5]} 19... Rad8
{[%clk 0:01:33.5]} 20. hxg5 {[%clk 0:02:00.8]} 20... hxg5 {[%clk 0:01:32.5]} 21.
exd5 {[%clk 0:01:53.3]} 21... exd5 {[%clk 0:01:30.8]} 22. Ne1 {[%clk 0:01:52.9]}
22... Ne7 {[%clk 0:01:20.5]} 23. Nd3 {[%clk 0:01:48.4]} 23... Nf5 {[%clk
0:01:19.3]} 24. Nc5 {[%clk 0:01:47]} 24... Ba8 {[%clk 0:01:17.5]} 25. Bh3 {[%clk
0:01:44.8]} 25... Nxd4 {[%clk 0:00:47.2]} 26. Qxd4 {[%clk 0:01:45.7]} 26... f5
{[%clk 0:00:47.1]} 27. Qe3 {[%clk 0:01:46.3]} 27... d4 {[%clk 0:00:43]} 28. Qe6+
{[%clk 0:01:46.3]} 28... Kh7 {[%clk 0:00:33.6]} 29. Qxd6 {[%clk 0:01:46.3]}
29... Rxd6 {[%clk 0:00:32.9]} 30. Ne2 {[%clk 0:01:46.2]} 30... f4 {[%clk
0:00:29]} 31. Bg4 {[%clk 0:00:33]} 31... Rh6 {[%clk 0:00:24.9]} 32. f3 {[%clk
0:00:33.3]} 32... fxg3 {[%clk 0:00:22.2]} 33. Nxd4 {[%clk 0:00:25.6]} 33... Rc8
{[%clk 0:00:19.7]} 34. Ncb3 {[%clk 0:00:23.7]} 34... Rd8 {[%clk 0:00:18.9]} 35.
Nf5 {[%clk 0:00:21.9]} 35... Rh2 {[%clk 0:00:16.5]} 36. Rxd8 {[%clk 0:00:17.7]}
36... Rxb2 {[%clk 0:00:07.5]} 37. Rxa8 {[%clk 0:00:15.8]} 37... Rxa2 {[%clk
0:00:07]} 38. Nxg3 {[%clk 0:00:15.4]} 38... Rb2 {[%clk 0:00:06.1]} 39. Ra7
{[%clk 0:00:14.8]} 1-0

[Event "*** Titled Tuesday Blitz"]
[Site "Chess.com"]
[Date "2021.03.09"]
[Round "2"]
[White "IljaJoke"]
[Black "miredenizdogan"]
[Result "1-0"]
[WhiteElo "2476"]
[BlackElo "2260"]
[TimeControl "180+1"]
[EndTime "10:19:08 PST"]
[Termination "IljaJoke won by resignation"]

1. e4 {[%clk 0:03:00.9]} 1... e6 {[%clk 0:02:48.9]} 2. d4 {[%clk 0:03:00.3]}
2... d5 {[%clk 0:02:47.3]} 3. exd5 {[%clk 0:02:59.2]} 3... exd5 {[%clk
0:02:46.8]} 4. Nf3 {[%clk 0:03:00.1]} 4... Bd6 {[%clk 0:02:41.7]} 5. c4 {[%clk
0:02:59.6]} 5... Bb4+ {[%clk 0:02:38.3]} 6. Nc3 {[%clk 0:02:53.7]} 6... Nf6
{[%clk 0:02:38.7]} 7. cxd5 {[%clk 0:02:18.8]} 7... O-O {[%clk 0:02:35.8]} 8. Bc4
{[%clk 0:02:09.3]} 8... Nxd5 {[%clk 0:02:29.1]} 9. O-O {[%clk 0:02:07.6]} 9...
Nxc3 {[%clk 0:02:23.4]} 10. bxc3 {[%clk 0:02:07.9]} 10... Bxc3 {[%clk
0:02:24.3]} 11. Bg5 {[%clk 0:01:52.4]} 11... Qd6 {[%clk 0:02:04.9]} 12. Rc1
{[%clk 0:01:52.3]} 12... Ba5 {[%clk 0:01:37.7]} 13. Ne5 {[%clk 0:01:52.1]} 13...
Be6 {[%clk 0:01:32.5]} 14. Bd3 {[%clk 0:01:34.6]} 14... h6 {[%clk 0:01:21.8]}
15. Bxh6 {[%clk 0:01:04.9]} 15... gxh6 {[%clk 0:01:15.3]} 16. Qh5 {[%clk
0:01:05]} 16... Bc8 {[%clk 0:01:01.3]} 17. Rc5 {[%clk 0:00:34]} 17... Bd2 {[%clk
0:00:51.7]} 18. Ng4 {[%clk 0:00:27.9]} 18... Bxg4 {[%clk 0:00:40.6]} 19. Qxg4+
{[%clk 0:00:27.8]} 19... Kh8 {[%clk 0:00:40.8]} 20. Qf5 {[%clk 0:00:22.5]} 20...
Qg6 {[%clk 0:00:37]} 21. Qe5+ {[%clk 0:00:20.4]} 21... Qg7 {[%clk 0:00:36.2]}
22. Qxc7 {[%clk 0:00:16.1]} 22... Na6 {[%clk 0:00:35.1]} 23. Qxb7 {[%clk
0:00:15.3]} 23... Nxc5 {[%clk 0:00:34.2]} 24. dxc5 {[%clk 0:00:16.2]} 24... Rab8
{[%clk 0:00:31]} 25. Qxa7 {[%clk 0:00:15.9]} 25... Rg8 {[%clk 0:00:30.4]} 26. g3
{[%clk 0:00:15.8]} 26... Rb2 {[%clk 0:00:28.8]} 27. c6 {[%clk 0:00:15.5]} 27...
Bc3 {[%clk 0:00:19.8]} 28. c7 {[%clk 0:00:11.6]} 28... Bd4 {[%clk 0:00:19.2]}
29. Qa6 {[%clk 0:00:11.9]} 29... Bxf2+ {[%clk 0:00:16.9]} 30. Rxf2 {[%clk
0:00:11.1]} 30... Rxf2 {[%clk 0:00:16.5]} 31. Kxf2 {[%clk 0:00:11.5]} 31... Qd4+
{[%clk 0:00:16.1]} 32. Kg2 {[%clk 0:00:10]} 32... Qd5+ {[%clk 0:00:13.8]} 33.
Kg1 {[%clk 0:00:09.9]} 33... Qd4+ {[%clk 0:00:13.5]} 34. Kg2 {[%clk 0:00:10.1]}
34... Qd5+ {[%clk 0:00:11.6]} 35. Kh3 {[%clk 0:00:08.4]} 35... Qe6+ {[%clk
0:00:11.1]} 36. Qxe6 {[%clk 0:00:07.8]} 36... fxe6 {[%clk 0:00:12]} 37. Ba6
{[%clk 0:00:08.2]} 37... Kg7 {[%clk 0:00:10.3]} 38. c8=Q {[%clk 0:00:08.6]}
38... Rd8 {[%clk 0:00:09.7]} 39. Qxd8 {[%clk 0:00:08.1]} 1-0